bitfinex/quotes_BTCUSD_20241123
["timestamp","ask_amount","ask_price","bid_price","bid_amount"]
[1732353729484,0.05646502,98040.0,98011.0,0.00102011]
[1732353729699,0.04646502,98040.0,98011.0,0.00102011]
[1732353729851,0.04646502,98040.0,98009.0,0.0454]
[1732353729852,0.04646502,98040.0,98010.0,0.00102011]
[1732353730265,0.04646502,98040.0,98009.0,0.0454]
[1732353730471,0.04646502,98040.0,98010.0,0.00102011]
[1732353730641,0.0458,98039.0,98010.0,0.00102011]
[1732353731066,0.0799,98038.0,98010.0,0.00102011]
[1732353731504,0.0799,98038.0,98009.0,0.0454]
[1732353734240,0.1257,98029.0,98009.0,0.0454]
[1732353736637,0.0458,98028.0,98006.0,0.0193903]
[1732353738191,0.0458,98028.0,97997.0,0.06015838]
[1732353738418,0.0458,98026.0,97997.0,0.06015838]
[1732353740007,0.01347789,98026.0,97998.0,0.0454]
[1732353740233,0.01347789,98026.0,97998.0,0.19642019]
[1732353740663,0.01347789,98026.0,98000.0,0.05474502]
[1732353740889,0.01347789,98026.0,98001.0,0.00102019]
[1732353741546,0.01347789,98026.0,98000.0,0.05474502]
[1732353741830,0.0766,98025.0,97998.0,0.1954]
[1732353743203,0.1245,98023.0,97998.0,0.1954]
[1732353743439,0.1245,98023.0,97998.0,0.0454]
[1732353744110,0.1245,98022.0,97998.0,0.0454]
[1732353745454,0.1245,98021.0,97998.0,0.0454]
[1732353748468,0.08823,98021.0,97998.0,0.0454]
[1732353749103,0.08567104,98021.0,97998.0,0.0454]
[1732353751210,0.04852104,98021.0,98000.0,0.05474502]
[1732353751445,0.00364104,98021.0,98001.0,0.00102019]
[1732353752304,0.00364104,98021.0,97998.0,0.0454]
[1732353754054,0.0479,98020.0,97998.0,0.0454]
[1732353754774,0.04818522,98040.0,97997.0,0.04205922]
[1732353754775,0.0017202,98040.0,98002.0,0.2312]
[1732353755007,0.05646522,98040.0,98004.0,0.0459]
[1732353755245,0.05646522,98040.0,98005.0,0.00102019]
[1732353755713,0.05646522,98040.0,98006.0,0.0459]
[1732353755951,0.05646522,98040.0,98008.0,0.0459]
[1732353756166,0.05474502,98040.0,98012.0,0.0459]
[1732353756381,0.05474502,98040.0,98014.0,0.0459]
[1732353756601,0.05474502,98040.0,98015.0,0.00102009]
[1732353757035,0.05474502,98040.0,98016.0,0.0459]
[1732353757245,0.05474502,98040.0,98017.0,0.00102009]
[1732353757457,0.07762009,98039.0,98010.0,0.04449703]
[1732353757675,0.07762009,98039.0,98018.0,0.00445375]
[1732353757917,0.07762009,98039.0,98019.0,0.00102009]
[1732353759255,0.07762009,98039.0,98010.0,0.04449703]
[1732353759462,0.0766,98031.0,98010.0,0.04176529]
[1732353759669,0.0766,98031.0,98011.0,0.00448026]
[1732353760081,0.0766,98031.0,97983.0,0.19081692]
[1732353760518,0.0766,98031.0,98001.0,0.05038011]
[1732353761802,0.0766,98031.0,98002.0,0.046]
[1732353762423,0.0766,98031.0,98003.0,0.00447967]
[1732353762615,0.0458,98030.0,98004.0,0.196]
[1732353763031,0.0458,98030.0,98005.0,0.00447903]
[1732353763665,0.04444837,98030.0,98005.0,0.00447903]
[1732353764975,0.03102787,98030.0,98005.0,0.00447903]
[1732353765933,0.00039103,98030.0,98006.0,0.046]
[1732353766111,0.00039103,98030.0,98007.0,0.046]
[1732353766377,0.00039103,98030.0,98007.0,0.05047805]
[1732353766587,0.00039103,98030.0,98007.0,0.20047805]
[1732353766804,0.00039103,98030.0,98007.0,0.05047805]
[1732353767707,0.00211123,98030.0,98007.0,0.05047805]
[1732353770973,0.07525526,98031.0,98007.0,0.05047805]
[1732353771220,0.07525526,98031.0,98007.0,0.20047805]
[1732353771456,0.06998514,98031.0,98007.0,0.05047805]
[1732353772125,0.06998514,98031.0,98010.0,0.05474502]
[1732353772588,0.06998514,98031.0,98011.0,0.00447755]
[1732353773682,0.06998514,98031.0,98012.0,0.046]
[1732353774110,0.06998514,98031.0,98013.0,0.00447641]
[1732353774994,0.01948514,98031.0,98013.0,0.00447641]
[1732353775859,0.03092365,98032.0,98013.0,0.00447641]
[1732353775860,0.01486879,98032.0,98013.0,0.00447641]
[1732353778757,0.0816,98031.0,98013.0,0.00447641]
[1732353778975,0.0816,98031.0,98013.0,0.15447641]
[1732353779397,0.0816,98031.0,98013.0,0.00447641]
[1732353779613,0.0816,98026.0,98013.0,0.00447641]
[1732353782376,0.0474,98025.0,98013.0,0.00447641]
[1732353782594,0.0752,98024.0,98013.0,0.00447641]
[1732353783961,0.0752,98024.0,98005.0,0.00828896]
[1732353784191,0.0752,98024.0,98005.0,0.04102152]
[1732353784422,0.0752,98024.0,98004.0,0.0477]
[1732353784858,0.0752,98024.0,98004.0,0.08950493]
[1732353785314,0.03937001,98024.0,98004.0,0.08950493]
[1732353787332,0.00353001,98024.0,98004.0,0.08950493]
[1732353787543,0.00353001,98024.0,98005.0,0.15]
[1732353787995,0.01473001,98025.0,98005.0,0.15]
[1732353788615,0.01486879,98028.0,98004.0,0.08950493]
[1732353788830,0.01486879,98028.0,98005.0,0.0477]
[1732353789072,0.01486879,98028.0,98005.0,0.1977]
[1732353789285,0.01486879,98028.0,98005.0,0.0477]
[1732353789943,0.1,98064.0,98010.0,0.05474502]
[1732353790156,0.05646482,98050.0,98019.0,0.1977]
[1732353790385,0.05646482,98050.0,98020.0,0.00102004]
[1732353790593,0.05646482,98050.0,98022.0,0.0477]
[1732353790807,0.05646482,98050.0,98023.0,0.00102002]
[1732353791036,0.0752,98049.0,98024.0,0.00102002]
[1732353791226,0.0752,98049.0,98023.0,0.00101999]
[1732353791432,0.0752,98049.0,98024.0,0.00101999]
[1732353791709,0.0752,98049.0,98022.0,0.0477]
[1732353791710,0.0752,98049.0,98023.0,0.00101999]
[1732353792759,0.0752,98049.0,98022.0,0.0477]
[1732353793444,0.00172,98032.0,98022.0,0.0477]
[1732353794124,0.00172,98032.0,98022.0,0.0883429]
[1732353797468,0.04937419,98041.0,98022.0,0.0883429]
[1732353799335,0.0491198,98050.0,98023.0,0.07832002]
[1732353799764,0.0017198,98050.0,98023.0,0.22832002]
[1732353800616,0.0752,98049.0,98023.0,0.22832002]
[1732353801270,0.0752,98049.0,98023.0,0.2273]
[1732353801478,0.0752,98049.0,98022.0,0.0883429]
[1732353801479,0.05474502,98040.0,98022.0,0.0883429]
[1732353802106,0.0489,98044.0,98023.0,0.00102005]
[1732353802311,0.0489,98044.0,98022.0,0.0883429]
[1732353803491,0.0489,98044.0,98023.0,0.00102005]
[1732353804367,0.0752,98049.0,98023.0,0.00102005]
[1732353804804,0.0752,98049.0,98022.0,0.0883429]
[1732353805017,0.0752,98049.0,98023.0,0.00102]
[1732353806296,0.0752,98049.0,98022.0,0.0892028]
[1732353806721,0.0769198,98049.0,98022.0,0.0892028]
[1732353808478,0.0769198,98049.0,98010.0,0.04178666]
[1732353811325,0.0769198,98049.0,98010.0,0.08280391]
[1732353811503,0.0769198,98049.0,98013.0,0.0488]
[1732353811710,0.0769198,98049.0,98013.0,0.1988]
[1732353812186,0.0769198,98049.0,98014.0,0.04982]
[1732353812857,0.0769198,98049.0,98014.0,0.0488]
[1732353817262,0.0775,98047.0,98014.0,0.0488]
[1732353817434,0.0775,98047.0,98014.0,0.1988]
[1732353817848,0.0775,98047.0,98014.0,0.0488]
[1732353819308,0.0775,98047.0,98014.0,0.0496601]
[1732353823514,0.0831,98045.0,98014.0,0.0496601]
[1732353826874,0.0831,98045.0,98015.0,0.00102001]
[1732353827100,0.0831,98045.0,98014.0,0.0496601]
[1732353827366,0.0581,98045.0,98020.0,0.05474502]
[1732353827557,0.4,98075.0,98031.0,0.1999]
[1732353827740,0.4,98075.0,98033.0,0.15]
[1732353828004,0.05646462,98070.0,98034.0,0.00101988]
[1732353828875,0.05646462,98070.0,98033.0,0.15]
[1732353828876,0.05646462,98070.0,98032.0,0.2333]
[1732353829081,0.05646462,98070.0,98033.0,0.00101988]
[1732353829502,0.05646462,98070.0,98034.0,0.0499]
[1732353829708,0.05646462,98070.0,98035.0,0.00101988]
[1732353830574,0.1314,98067.0,98035.0,0.00101988]
[1732353831483,0.1314,98067.0,98034.0,0.0499]
[1732353834582,0.05474502,98060.0,98034.0,0.0499]
[1732353838756,0.1314,98067.0,98034.0,0.0499]
[1732353846654,0.05474502,98060.0,98034.0,0.0499]
[1732353846870,0.05474502,98050.0,98034.0,0.0499]
[1732353847534,0.0461,98058.0,98034.0,0.0499]
[1732353852615,0.0796,98059.0,98034.0,0.0499]
[1732353852827,0.0796,98059.0,98034.0,0.0476]
[1732353853042,0.0813194,98068.0,98040.0,0.05474502]
[1732353853290,0.0017194,98068.0,98045.0,0.0751]
[1732353853517,0.0017194,98068.0,98045.0,0.1227]
[1732353853734,0.0017194,98068.0,98046.0,0.15]
[1732353854162,0.0017194,98068.0,98046.0,0.1976]
[1732353854818,0.00086,98067.0,98046.0,0.1976]
[1732353855227,0.00086,98067.0,98047.0,0.0476]
[1732353858043,0.05474502,98060.0,98047.0,0.0476]
[1732353859901,0.05474502,98060.0,98033.0,0.023]
[1732353860108,0.0796,98062.0,98031.0,0.023]
[1732353860321,0.05474502,98060.0,98030.0,0.00172]
[1732353860984,0.05474502,98060.0,98030.0,0.05646502]
[1732353861628,0.0796,98062.0,98030.0,0.05646502]
[1732353862971,0.0796,98062.0,98032.0,0.023]
[1732353863197,0.0796,98062.0,98033.0,0.0479]
[1732353864211,0.05474502,98060.0,98033.0,0.0479]
[1732353865593,0.0796,98062.0,98033.0,0.0479]
[1732353866722,0.05474502,98060.0,98033.0,0.0479]
[1732353867412,0.0486,98059.0,98031.0,0.17614682]
[1732353868207,0.0486,98059.0,98033.0,0.00172]
[1732353868820,0.0805,98058.0,98033.0,0.00172]
[1732353869939,0.0805,98058.0,98031.0,0.02614682]
[1732353869940,0.0805,98058.0,98031.0,0.02531711]
[1732353870355,0.0805,98058.0,98032.0,0.0479]
[1732353873261,0.049,98057.0,98032.0,0.0479]
[1732353873477,0.03375447,98057.0,98032.0,0.0479]
[1732353879515,0.0758,98054.0,98032.0,0.0479]
[1732353879738,0.0758,98054.0,98030.0,0.04391155]
[1732353879739,0.049,98053.0,98030.0,0.04391155]
[1732353879948,0.05474502,98060.0,98030.0,0.04391155]
[1732353879949,0.049,98051.0,98030.0,0.04391155]
[1732353880168,0.0758,98050.0,98030.0,0.04391155]
[1732353880389,0.1248,98048.0,98030.0,0.04391155]
[1732353880823,0.1248,98048.0,98032.0,0.00172]
[1732353881333,1e-08,98048.0,98033.0,0.0454]
[1732353881768,1e-08,98048.0,98034.0,0.00101991]
[1732353882659,0.00086,98067.0,98033.0,0.0454]
[1732353882860,0.00086,98067.0,98034.0,0.00101991]
[1732353883089,0.00086,98067.0,98033.0,0.0454]
[1732353884384,0.0821,98066.0,98033.0,0.0454]
[1732353885464,0.05474502,98060.0,98033.0,0.0454]
[1732353885690,0.1319,98059.0,98033.0,0.0454]
[1732353889090,0.1309,98059.0,98033.0,0.0454]
[1732353893890,0.1309,98059.0,98033.0,0.04712]
[1732353899244,0.0821,98065.0,98042.0,0.15]
[1732353899470,0.0821,98065.0,98043.0,0.0454]
[1732353900437,0.00086,98066.0,98043.0,0.0454]
[1732353900667,0.00086,98066.0,98045.0,0.0454]
[1732353900902,0.00086,98066.0,98043.0,0.0454]
[1732353901833,0.00086,98066.0,98044.0,0.05031983]
[1732353902073,0.00187983,98066.0,98041.0,0.0261372]
[1732353902303,0.00101983,98065.0,98042.0,0.00101983]
[1732353903513,0.002,98064.0,98050.0,0.05474502]
[1732353903747,0.00127475,98063.0,98040.0,0.05474502]
[1732353904209,0.00127474,98062.0,98040.0,0.05474502]
[1732353904445,0.00086,98066.0,98040.0,0.05474502]
[1732353904700,0.08278399,98066.0,98040.0,0.05474502]
[1732353905176,0.08278399,98066.0,98042.0,0.0493]
[1732353906534,0.08278399,98066.0,98044.0,0.0493]
[1732353907206,0.08278399,98066.0,98044.0,0.1993]
[1732353911991,0.002,98053.0,98040.0,0.04353497]
[1732353912215,0.1285,98054.0,98040.0,0.04353497]
[1732353912665,0.0685,98054.0,98040.0,0.04353497]
[1732353914478,0.0185,98054.0,98040.0,0.04353497]
[1732353914693,0.08064925,98059.0,98040.0,0.04353497]
[1732353914938,0.00076484,98058.0,98040.0,0.04353497]
[1732353915188,0.07441409,98059.0,98040.0,0.04353497]
[1732353915627,0.02931919,98059.0,98040.0,0.04353497]
[1732353917390,0.081,98058.0,98040.0,0.04353497]
[1732353917835,0.0475,98057.0,98040.0,0.04353497]
[1732353923414,0.081,98058.0,98040.0,0.04353497]
[1732353923880,0.081,98058.0,98041.0,0.15]
[1732353925941,0.02931919,98059.0,98043.0,0.0466]
[1732353932146,0.021024,98059.0,98043.0,0.0466]
[1732353933498,0.0017196,98070.0,98041.0,0.1517202]
[1732353933499,0.4813,98091.0,98049.0,0.05474502]
[1732353933725,0.05474502,98090.0,98050.0,0.28051971]
[1732353933943,0.05474502,98080.0,98054.0,0.0466]
[1732353934202,0.05474502,98080.0,98055.0,0.0466]
[1732353935082,0.0813,98079.0,98055.0,0.0466]
[1732353935321,0.05474502,98070.0,98055.0,0.0466]
[1732353935563,0.0813,98079.0,98055.0,0.23851008]
[1732353936022,0.0813,98079.0,98055.0,0.00425781]
[1732353936231,0.0813,98079.0,98055.0,0.04467154]
[1732353936447,0.0813,98079.0,98055.0,0.00425781]
[1732353936937,0.0813,98079.0,98053.0,0.0829]
[1732353937772,0.0813,98079.0,98053.0,0.12342091]
[1732353938042,0.0813,98079.0,98054.0,0.15]
[1732353938921,0.0813,98079.0,98055.0,0.0466]
[1732353941493,0.08216,98079.0,98055.0,0.0466]
[1732353942362,0.08216,98079.0,98053.0,0.01861541]
[1732353942580,0.0459,98078.0,98041.0,0.0017202]
[1732353943196,0.0459,98078.0,98042.0,0.040624]
[1732353945488,0.0459,98078.0,98044.0,0.15]
[1732353952045,0.0459,98078.0,98050.0,0.05474502]
[1732353952718,0.0459,98078.0,98051.0,0.00101972]
[1732353953240,0.04676,98078.0,98051.0,0.00101972]
[1732353954682,0.0811,98077.0,98051.0,0.00101972]
[1732353954903,0.0459,98076.0,98051.0,0.00101972]
[1732353955775,0.0459,98076.0,98051.0,0.04211583]
[1732353960561,0.0459,98074.0,98051.0,0.04211583]
[1732353963191,0.06394429,98075.0,98051.0,0.04211583]
[1732353963410,0.06394429,98075.0,98051.0,0.19211583]
[1732353963615,0.06394429,98075.0,98051.0,0.04211583]
[1732353966419,0.0465,98074.0,98051.0,0.04211583]
[1732353969350,0.0465,98074.0,98052.0,0.0482]
[1732353969568,0.0465,98074.0,98053.0,0.00101972]
[1732353972906,0.03151089,98059.0,98054.0,0.0482]
[1732353973118,0.00086,98078.0,98075.0,0.15]
[1732353974198,0.00086,98078.0,98065.0,0.0482]
[1732353974862,0.00086,98078.0,98065.0,0.04098107]
[1732353975318,0.00086,98078.0,98059.0,0.0482]
[1732353975762,0.00086,98078.0,98052.0,0.15]
[1732353975763,0.0465,98077.0,98053.0,0.0482]
[1732353976036,0.05474502,98070.0,98053.0,0.0482]
[1732353976284,0.1281,98069.0,98053.0,0.0482]
[1732353977829,0.1281,98069.0,98044.0,0.06018385]
[1732353978939,0.1281,98069.0,98044.0,0.10191093]
[1732353980272,0.1281,98069.0,98045.0,0.15]
[1732353980749,0.1281,98069.0,98045.0,0.1982]
[1732353983233,0.10071253,98069.0,98045.0,0.1982]
[1732353989809,0.08954921,98069.0,98045.0,0.1982]
[1732353990023,0.06521921,98069.0,98045.0,0.1982]
[1732353993881,0.04143886,98069.0,98045.0,0.1982]
[1732353995232,0.04143886,98069.0,98046.0,0.0326895]
[1732353997058,0.0796,98068.0,98046.0,0.0326895]
[1732353997515,0.0796,98068.0,98044.0,0.01464377]
[1732353997752,0.0454,98067.0,98044.0,0.0017206]
[1732353998844,0.0796,98068.0,98044.0,0.0017206]
[1732354000709,0.04392,98068.0,98050.0,0.05474502]
[1732354001613,0.04392,98068.0,98045.0,0.15]
[1732354001826,0.0466,98067.0,98044.0,0.2283206]
[1732354010823,0.0466,98067.0,98057.0,0.15]
[1732354013946,0.0466,98067.0,98057.0,0.19086745]
[1732354014166,0.0466,98067.0,98057.0,0.04086745]
[1732354014662,0.0466,98067.0,98056.0,0.15]
[1732354014870,0.0466,98067.0,98054.0,0.15]
[1732354016459,0.0466,98067.0,98045.0,0.15]
[1732354017315,0.0466,98067.0,98055.0,0.15]
[1732354018850,0.04361238,98067.0,98045.0,0.15]
[1732354019089,0.04361238,98067.0,98049.0,0.15]
[1732354019546,0.04361238,98067.0,98049.0,0.6439367]
[1732354021705,0.04361238,98067.0,98049.0,0.15]
[1732354023098,0.04361238,98067.0,98045.0,0.15]
[1732354023963,0.04361238,98067.0,98048.0,0.15]
[1732354024178,0.04361238,98067.0,98048.0,0.49403699]
[1732354024402,0.0447801,98068.0,98049.0,0.15]
[1732354025693,0.0447801,98068.0,98045.0,0.15]
[1732354027313,0.0486,98067.0,98045.0,0.15]
[1732354027944,0.0486,98067.0,98045.0,0.1517202]
[1732354030102,0.03844654,98067.0,98045.0,0.1517202]
[1732354030310,0.0447801,98068.0,98045.0,0.1517202]
[1732354030751,0.0781,98065.0,98040.0,0.05646522]
[1732354030990,0.0486,98064.0,98040.0,0.05646522]
[1732354031209,0.02457428,98064.0,98040.0,0.0017202]
[1732354031434,0.05406834,98065.0,98040.0,0.0017202]
[1732354031891,0.0394176,98065.0,98040.0,0.0017202]
[1732354032107,0.0394176,98065.0,98040.0,0.04374916]
[1732354032533,0.0394176,98065.0,98040.0,0.0017202]
[1732354034538,0.0486,98064.0,98040.0,0.0017202]
[1732354034770,0.0486,98064.0,98039.0,0.14662105]
[1732354034994,0.0486,98062.0,98039.0,0.14662105]
[1732354035227,0.10334502,98060.0,98038.0,0.0405369]
[1732354035450,0.0486,98058.0,98038.0,0.0405369]
[1732354035676,0.04587,98056.0,98032.0,0.0817]
[1732354036070,0.04587,98056.0,98030.0,0.0514556]
[1732354036339,0.0781,98055.0,98032.0,0.04069353]
[1732354036524,0.0781,98055.0,98030.0,0.0514556]
[1732354036789,0.06278942,98055.0,98030.0,0.0514556]
[1732354037208,0.02691942,98055.0,98030.0,0.0514556]
[1732354037479,0.0422619,98060.0,98030.0,0.09184412]
[1732354037706,0.0422619,98060.0,98031.0,0.15]
[1732354038200,0.0008601,98068.0,98031.0,0.15]
[1732354038433,0.05474502,98060.0,98032.0,0.00101985]
[1732354038653,0.0008601,98068.0,98032.0,0.00101985]
[1732354038861,0.0486,98067.0,98032.0,0.00101985]
[1732354040015,0.0486,98067.0,98033.0,0.0817]
[1732354040438,0.0486,98065.0,98034.0,0.00101985]
[1732354040649,0.0486,98048.0,98030.0,0.04210872]
[1732354045227,0.01311,98048.0,98030.0,0.04210872]
[1732354045699,0.0781,98049.0,98030.0,0.04210872]
[1732354048406,0.01016,98048.0,98030.0,0.09030872]
[1732354050021,0.01016,98048.0,98023.0,0.173]
[1732354050253,0.01016,98048.0,98023.0,0.023]
[1732354050480,0.01016,98048.0,98022.0,0.023]
[1732354051595,0.03093642,98049.0,98025.0,0.0789]
[1732354051829,0.03093642,98049.0,98026.0,0.023]
[1732354052029,0.03093642,98049.0,98030.0,0.0017204]
[1732354052233,0.02073515,98049.0,98030.0,0.0017204]
[1732354053822,0.05560522,98060.0,98030.0,0.0017204]
[1732354054712,0.0456,98059.0,98030.0,0.0017204]
[1732354055557,0.0456,98059.0,98031.0,0.0789]
[1732354056884,0.0456,98057.0,98031.0,0.0789]
[1732354058241,0.0456,98057.0,98032.0,0.15101993]
[1732354058895,0.0456,98057.0,98032.0,0.15]
[1732354061635,0.4,98085.0,98040.0,0.05474502]
[1732354061835,0.05560532,98070.0,98043.0,0.2314]
[1732354064380,0.05474502,98070.0,98043.0,0.2314]
[1732354064588,0.0008602,98057.0,98043.0,0.2314]
[1732354068816,0.0466,98062.0,98043.0,0.2314]
[1732354069079,0.05474502,98060.0,98043.0,0.15]
[1732354069298,0.0466,98052.0,98034.0,0.0814]
[1732354075143,0.0466,98052.0,98035.0,0.18252123]
[1732354081075,0.0466,98052.0,98034.0,0.05727607]
[1732354081715,0.0464,98069.0,98035.0,0.0471]
[1732354081956,0.05474502,98070.0,98035.0,0.04811993]
[1732354082183,0.0464,98075.0,98036.0,0.023]
[1732354082401,0.05474502,98070.0,98041.0,0.0471]
[1732354082604,0.05474502,98070.0,98042.0,0.04811986]
[1732354084001,0.05474502,98070.0,98043.0,0.0775]
[1732354084221,0.05474502,98070.0,98047.0,0.15]
[1732354085550,0.05474502,98060.0,98047.0,0.15]
[1732354085998,0.05474502,98070.0,98047.0,0.15]
[1732354086215,0.05474502,98070.0,98047.0,0.19185653]
[1732354087984,0.05474502,98070.0,98048.0,0.0471]
[1732354090705,0.05474502,98070.0,98049.0,0.0775]
[1732354090993,0.05474502,98070.0,98049.0,0.2275]
[1732354091403,0.05474502,98070.0,98050.0,0.1971]
[1732354092615,0.05474502,98070.0,98051.0,0.0471]
[1732354094529,0.05474502,98070.0,98053.0,0.0471]
[1732354094787,0.05474502,98070.0,98053.0,0.1971]
[1732354096591,0.0008602,98074.0,98053.0,0.1971]
[1732354097024,0.05474502,98070.0,98053.0,0.15]
[1732354097255,0.05474502,98070.0,98054.0,0.0471]
[1732354099046,0.05474502,98070.0,98043.0,0.15]
[1732354099265,0.05474502,98070.0,98040.0,0.05474502]
[1732354099485,0.05474502,98070.0,98035.0,0.023]
[1732354099911,0.05474502,98070.0,98035.0,0.0247204]
[1732354100121,0.05560522,98070.0,98035.0,0.0247204]
[1732354100321,0.05560522,98070.0,98040.0,0.05474502]
[1732354101334,0.05560522,98070.0,98035.0,0.0247204]
[1732354102214,0.05560522,98070.0,98036.0,0.1248]
[1732354102463,0.05560522,98070.0,98037.0,0.023]
[1732354102688,0.05560522,98070.0,98040.0,0.15]
[1732354102908,0.05560522,98070.0,98043.0,0.1998]
[1732354103186,0.05560522,98070.0,98045.0,0.1998]
[1732354103409,0.05560522,98070.0,98037.0,0.023]
[1732354103410,0.05560522,98070.0,98047.0,0.1998]
[1732354103641,0.05560522,98070.0,98047.0,0.15]
[1732354103864,0.05560522,98070.0,98049.0,0.15]
[1732354104517,0.05560522,98070.0,98048.0,0.02002462]
[1732354104725,0.049,98069.0,98048.0,0.02002462]
[1732354107765,0.049,98069.0,98049.0,0.0498]
[1732354111650,0.049,98069.0,98049.0,0.24144666]
[1732354111857,0.049,98069.0,98050.0,0.15]
[1732354113354,0.049,98069.0,98049.0,0.24316726]
[1732354116788,0.04799736,98069.0,98049.0,0.24316726]
[1732354124598,0.04885766,98069.0,98049.0,0.24316726]
[1732354124817,0.04885766,98069.0,98050.0,0.15]
[1732354126203,0.04885766,98069.0,98049.0,0.24316726]
[1732354135730,0.04885766,98069.0,98050.0,0.15]
[1732354136798,0.04885766,98069.0,98049.0,0.24316726]
[1732354137083,0.04885766,98069.0,98050.0,0.15]
[1732354138394,0.04885766,98069.0,98049.0,0.24316726]
[1732354140350,0.04885766,98069.0,98050.0,0.173]
[1732354148126,0.04885766,98069.0,98050.0,0.1747202]
[1732354148593,0.0170283,98069.0,98051.0,0.00101979]
[1732354148868,0.03632029,98078.0,98053.0,0.15]
[1732354149139,0.03632029,98078.0,98054.0,0.02401974]
[1732354149815,0.03632029,98078.0,98055.0,0.1265]
[1732354150075,0.03632029,98078.0,98056.0,0.15]
[1732354150758,0.03632029,98078.0,98057.0,0.023]
[1732354151625,0.0457,98077.0,98057.0,0.023]
[1732354152246,0.05474502,98070.0,98057.0,0.023]
[1732354152466,0.05474502,98070.0,98050.0,0.0017202]
[1732354152467,0.1264,98069.0,98050.0,0.0017202]
[1732354152897,0.1264,98069.0,98051.0,0.023]
[1732354153103,0.1094,98069.0,98047.0,0.01819123]
[1732354153546,0.1094,98069.0,98048.0,0.00101979]
[1732354153765,0.1094,98069.0,98047.0,0.01819123]
[1732354153766,0.1094,98069.0,98047.0,0.05870459]
[1732354153991,0.1094,98069.0,98047.0,0.01819123]
[1732354154239,0.0749,98069.0,98048.0,0.00101979]
[1732354154457,0.0749,98069.0,98047.0,0.01819123]
[1732354156197,0.0749,98069.0,98042.0,0.0474]
[1732354157096,0.0457,98068.0,98042.0,0.0474]
[1732354157300,0.1264,98068.0,98042.0,0.0474]
[1732354157531,0.0807,98067.0,98042.0,0.0474]
[1732354157966,0.0807,98067.0,98043.0,0.00101979]
[1732354158186,0.0807,98067.0,98044.0,0.0474]
[1732354158402,0.0807,98067.0,98045.0,0.00101979]
[1732354160409,0.0807,98067.0,98047.0,0.1974]
[1732354161988,0.0807,98067.0,98048.0,0.00101976]
[1732354162884,0.00032877,98050.0,98048.0,0.00101976]
[1732354163094,0.0807,98067.0,98065.0,0.53567123]
[1732354163320,0.0807,98067.0,98066.0,0.15]
[1732354165321,0.0807,98067.0,98066.0,0.19080502]
[1732354166645,0.0807,98067.0,98047.0,0.0474]
[1732354166899,0.0807,98067.0,98050.0,0.05474502]
[1732354167113,0.0807,98067.0,98051.0,0.00101976]
[1732354168040,0.0807,98067.0,98048.0,0.00101976]
[1732354179865,0.049,98066.0,98048.0,0.00101976]
[1732354180281,0.049,98066.0,98050.0,0.05474502]
[1732354180744,0.049,98066.0,98051.0,0.00101976]
[1732354181190,0.049,98066.0,98049.0,0.00101976]
[1732354181418,0.049,98066.0,98050.0,0.05474502]
[1732354181630,0.049,98066.0,98051.0,0.00101976]
[1732354182058,0.01334,98066.0,98051.0,0.00101976]
[1732354182273,0.0807,98067.0,98052.0,0.0466]
[1732354182495,0.0807,98067.0,98052.0,0.04761976]
[1732354183204,0.04403,98067.0,98052.0,0.04761976]
[1732354183422,0.00086,98079.0,98052.0,0.04761976]
[1732354183661,0.00086,98079.0,98053.0,0.0792]
[1732354183892,0.0008602,98067.0,98054.0,0.1966]
[1732354184320,0.0008602,98067.0,98057.0,0.05474502]
[1732354185197,0.04926,98079.0,98057.0,0.05474502]
[1732354185415,0.04926,98079.0,98058.0,0.1966]
[1732354186323,0.12726,98079.0,98058.0,0.1966]
[1732354186541,0.07886,98079.0,98059.0,0.0466]
[1732354189435,0.06011903,98079.0,98059.0,0.0466]
[1732354189691,0.06011903,98079.0,98061.0,0.0792]
[1732354189894,0.06011903,98079.0,98062.0,0.19761965]
[1732354190109,0.0484,98084.0,98062.0,0.19761965]
[1732354190766,0.0484,98088.0,98063.0,0.0466]
[1732354192559,0.078,98087.0,98063.0,0.0466]
[1732354197610,0.0008602,98088.0,98063.0,0.0466]
[1732354197774,0.0008602,98088.0,98065.0,0.0466]
[1732354198161,0.0008602,98088.0,98065.0,0.1966]
[1732354198370,0.0008602,98088.0,98066.0,0.0466]
[1732354203624,0.0008602,98088.0,98067.0,0.2277]
[1732354203799,0.0008602,98088.0,98068.0,0.0451]
[1732354204269,0.0008602,98088.0,98068.0,0.15]
[1732354204408,0.0008602,98088.0,98069.0,0.0451]
[1732354205028,0.0008602,98088.0,98070.0,0.13244502]
[1732354205228,0.0008602,98088.0,98072.0,0.0451]
[1732354207349,0.0008602,98088.0,98070.0,0.06257122]
[1732354210335,0.0008602,98088.0,98072.0,0.0451]
[1732354215789,0.023,98088.0,98073.0,0.0782]
[1732354215992,0.023,98088.0,98076.0,0.2282]
[1732354216206,0.023,98088.0,98077.0,0.1987]
[1732354221626,0.023,98088.0,98077.0,0.20042]
[1732354221830,0.023,98088.0,98042.0,0.0017202]
[1732354222031,0.023,98088.0,98061.0,0.0010196]
[1732354222456,0.00086,98089.0,98061.0,0.0010196]
[1732354222685,0.03368956,98091.0,98061.0,0.0010196]
[1732354222899,0.03368956,98091.0,98062.0,0.0491]
[1732354223302,0.02809675,98091.0,98062.0,0.0491]
[1732354224838,0.023,98090.0,98064.0,0.0491]
[1732354225051,0.023,98090.0,98065.0,0.0491]
[1732354225301,0.023,98090.0,98066.0,0.0491]
[1732354228142,0.023,98090.0,98069.0,0.1991]
[1732354231898,0.023,98088.0,98061.0,0.2325]
[1732354232126,0.023,98086.0,98064.0,0.047]
[1732354233269,0.023,98086.0,98069.0,0.00172]
[1732354235158,0.0482,98087.0,98069.0,0.00172]
[1732354238583,0.0482,98087.0,98071.0,0.2325]
[1732354241334,0.00086,98090.0,98078.0,0.0476]
[1732354241611,0.00086,98090.0,98079.0,0.00101947]
[1732354241873,0.00086,98090.0,98080.0,0.0047028]
[1732354243143,0.0489,98098.0,98079.0,0.00101947]
[1732354243144,0.0489,98098.0,98084.0,0.0809]
[1732354244664,0.023,98107.0,98084.0,0.0809]
[1732354246106,0.081,98105.0,98084.0,0.0809]